bitfinex/quotes_ETHUSD_20211001
["timestamp","ask_amount","ask_price","bid_price","bid_amount"]
[1633107258102,6.03902905,3262.6,3262.5,4.59815]
[1633107259801,6.03902905,3262.6,3262.5,5.89215]
[1633107260004,0.009,3263.0,3262.8,4.59727]
[1633107260203,0.009,3263.0,3262.9,0.184]
[1633107260402,0.009,3263.0,3262.9,1.04296053]
[1633107260802,0.009,3263.0,3262.9,53.29941106]
[1633107265402,0.009,3263.0,3262.9,51.04296053]
[1633107265606,0.009,3263.0,3262.9,50.184]
[1633107265807,2.49754481,3263.0,3262.9,50.184]
[1633107266204,0.009,3263.0,3262.9,50.184]
[1633107268207,0.009,3263.0,3262.9,51.08606288]
[1633107272206,1.509,3263.0,3262.9,51.08606288]
[1633107272509,1.509,3263.0,3262.9,50.0]
[1633107273408,1.509,3263.0,3262.9,51.99892594]
[1633107286484,1.509,3263.0,3262.9,50.0]
[1633107288886,1.509,3263.0,3262.9,54.59686]
[1633107289886,1.509,3263.0,3262.9,54.589112]
[1633107303895,1.459,3263.0,3262.9,54.589112]
[1633107306302,1.459,3263.0,3262.9,55.80039852]
[1633107308095,1.449,3263.0,3262.9,55.80039852]
[1633107310300,1.449,3263.0,3262.9,54.589112]
[1633107311506,3.93751404,3263.0,3262.9,54.589112]
[1633107311702,4.75348531,3263.0,3262.9,49.992252]
[1633107312709,3.93750567,3263.0,3262.9,49.992252]
[1633107313303,3.93750567,3263.0,3262.6,5.11720908]
[1633107313503,2.48863264,3262.9,3262.6,55.10946108]
[1633107313704,2.48863264,3262.9,3262.7,6.13004]
[1633107313903,2.48863264,3262.9,3262.7,6.31404]
[1633107314103,2.48863264,3262.9,3262.8,0.88750874]
[1633107315307,2.48863264,3262.9,3262.8,7.01743874]
[1633107315506,2.48863264,3262.9,3262.8,6.12993]
[1633107316905,2.48863264,3262.9,3262.8,7.25106961]
[1633107319705,3.02045236,3262.9,3262.8,7.25106961]
[1633107319907,2.48863264,3262.9,3262.8,7.25106961]
[1633107320706,2.48863264,3262.9,3262.8,6.86485145]
[1633107320907,2.48863264,3262.9,3262.8,5.74371184]
[1633107321108,3.02071649,3262.9,3262.7,0.184]
[1633107321508,11.83208974,3262.8,3262.7,0.184]
[1633107321713,3.41631598,3262.8,3262.6,54.92546108]
[1633107321909,18.43484014,3262.7,3262.6,54.92546108]
[1633107322110,2.48885315,3262.7,3262.6,54.92546108]
[1633107322309,2.48885315,3262.7,3262.6,4.93320908]
[1633107322513,3.73080919,3262.7,3262.6,4.93320908]
[1633107322709,8.33025919,3262.7,3262.6,4.93320908]
[1633107323311,9.45834481,3262.7,3262.6,4.93320908]
[1633107323512,8.33025919,3262.7,3262.6,4.93320908]
[1633107323909,11.64525656,3262.7,3262.6,4.93320908]
[1633107324109,7.04580656,3262.7,3262.6,4.93320908]
[1633107324310,36.84060202,3262.7,3262.6,4.93320908]
[1633107324510,41.17114206,3262.7,3262.6,4.93320908]
[1633107324710,39.92939319,3262.7,3262.6,4.93320908]
[1633107324909,38.91392039,3262.7,3262.6,4.93320908]
[1633107325510,5.80392039,3262.7,3262.6,4.93320908]
[1633107325714,2.48885315,3262.7,3262.6,4.93320908]
[1633107325910,3.37551293,3262.7,3262.6,4.93320908]
[1633107326108,3.37560956,3262.7,3262.6,4.93320908]
[1633107326311,3.37549344,3262.7,3262.6,4.93320908]
[1633107326511,0.88656445,3262.7,3262.6,4.93320908]
[1633107328714,3.37550062,3262.7,3262.6,4.93320908]
[1633107329513,2.48893617,3262.7,3262.6,4.93320908]
[1633107329915,4.3087981,3262.8,3262.6,4.93320908]
[1633107330115,7.62180199,3262.8,3262.6,4.93320908]
[1633107330317,2.48899752,3262.7,3262.6,4.93320908]
[1633107331520,3.93717845,3262.7,3262.6,4.93320908]
[1633107331716,110.41108812,3262.7,3262.6,4.93320908]
[1633107331914,115.41647805,3262.7,3262.6,4.93320908]
[1633107332118,116.11647805,3262.7,3262.6,4.93320908]
[1633107332317,132.61647805,3262.7,3262.6,4.93320908]
[1633107332518,139.83154205,3262.7,3262.6,4.93320908]
[1633107332718,126.60399352,3262.7,3262.6,4.93320908]
[1633107332920,105.41647805,3262.7,3262.6,4.93320908]
[1633107333121,106.01647805,3262.7,3262.6,4.93320908]
[1633107333320,87.21647805,3262.7,3262.6,4.93320908]
[1633107333523,87.09534718,3262.7,3262.6,4.93320908]
[1633107333721,69.49534718,3262.7,3262.6,4.93320908]
[1633107333920,99.33575634,3262.7,3262.6,4.93320908]
[1633107334182,104.63575634,3262.7,3262.6,4.93320908]
[1633107334320,113.83575634,3262.7,3262.6,4.93320908]
[1633107334520,115.20255843,3262.7,3262.6,4.93320908]
[1633107334721,115.63575634,3262.7,3262.6,4.93320908]
[1633107334919,113.83575634,3262.7,3262.6,4.93320908]
[1633107335323,115.03575634,3262.7,3262.6,4.93320908]
[1633107335523,121.53553659,3262.7,3262.6,4.93320908]
[1633107335723,123.03553659,3262.7,3262.6,4.93320908]
[1633107335922,119.03553659,3262.7,3262.6,4.93320908]
[1633107336126,118.73553659,3262.7,3262.6,4.93320908]
[1633107336323,116.33553659,3262.7,3262.6,4.93320908]
[1633107336523,117.43801092,3262.7,3262.6,4.93320908]
[1633107336721,120.13801092,3262.7,3262.6,4.93320908]
[1633107336923,119.13801092,3262.7,3262.6,4.93320908]
[1633107337188,118.63801092,3262.7,3262.6,4.93320908]
[1633107337321,121.43801092,3262.7,3262.6,4.93320908]
[1633107337522,120.13801092,3262.7,3262.6,4.93320908]
[1633107337722,119.53801092,3262.7,3262.6,4.93320908]
[1633107338326,119.43553659,3262.7,3262.6,4.93320908]
[1633107338524,30.23553659,3262.7,3262.6,4.93320908]
[1633107338726,71.48995725,3262.7,3262.6,4.93320908]
[1633107338924,90.29261386,3262.7,3262.6,4.93320908]
[1633107339124,88.69261386,3262.7,3262.6,4.93320908]
[1633107339525,115.8710503,3262.7,3262.6,4.93320908]
[1633107339724,112.8710503,3262.7,3262.6,4.93320908]
[1633107339924,74.13538312,3262.7,3262.6,4.93320908]
[1633107340191,77.05217076,3262.7,3262.6,4.93320908]
[1633107340325,92.05217076,3262.7,3262.6,4.93320908]
[1633107340525,94.95217076,3262.7,3262.6,4.93320908]
[1633107340725,115.63180018,3262.7,3262.6,4.93320908]
[1633107340924,115.39217076,3262.7,3262.6,4.93320908]
[1633107341124,114.39217076,3262.7,3262.6,4.93320908]
[1633107341525,99.39217076,3262.7,3262.6,4.93320908]
[1633107341727,93.39217076,3262.7,3262.6,4.93320908]
[1633107341926,96.29217076,3262.7,3262.6,4.93320908]
[1633107342125,112.15317372,3262.7,3262.6,4.93320908]
[1633107342328,115.25317372,3262.7,3262.6,4.93320908]
[1633107342526,114.65317372,3262.7,3262.6,4.93320908]
[1633107342726,94.99217076,3262.7,3262.6,4.93320908]
[1633107342925,99.09217076,3262.7,3262.6,4.93320908]
[1633107343189,95.09217076,3262.7,3262.6,4.93320908]
[1633107343326,114.69217076,3262.7,3262.6,4.93320908]
[1633107343526,99.69217076,3262.7,3262.6,4.93320908]
[1633107343726,100.90857761,3262.7,3262.6,4.93320908]
[1633107343932,101.30857761,3262.7,3262.6,4.93320908]
[1633107344127,118.80857761,3262.7,3262.6,4.93320908]
[1633107344327,103.80857761,3262.7,3262.6,4.93320908]
[1633107344526,102.80857761,3262.7,3262.6,4.93320908]
[1633107344726,107.80857761,3262.7,3262.6,4.93320908]
[1633107344926,112.99217076,3262.7,3262.6,4.93320908]
[1633107345127,90.27503094,3262.7,3262.6,4.93320908]
[1633107345325,107.67503094,3262.7,3262.6,4.93320908]
[1633107345528,123.49064191,3262.7,3262.6,4.93320908]
[1633107345728,143.08989191,3262.7,3262.6,4.93320908]
[1633107345927,139.98989191,3262.7,3262.6,4.93320908]
[1633107346190,127.08989191,3262.7,3262.6,4.93320908]
[1633107346328,119.58989191,3262.7,3262.6,4.93320908]
[1633107346532,114.42895989,3262.7,3262.6,4.93320908]
[1633107346726,113.42895989,3262.7,3262.6,4.93320908]
[1633107346926,125.32895989,3262.7,3262.6,4.93320908]
[1633107347127,109.92895989,3262.7,3262.6,4.93320908]
[1633107347326,124.92895989,3262.7,3262.6,4.93320908]
[1633107347528,127.92895989,3262.7,3262.6,4.93320908]
[1633107347727,128.02895989,3262.7,3262.6,4.93320908]
[1633107348327,129.62895989,3262.7,3262.6,4.93320908]
[1633107348526,120.38989191,3262.7,3262.6,4.93320908]
[1633107348726,94.68901543,3262.7,3262.6,4.93320908]
[1633107348926,67.74901543,3262.7,3262.6,4.93320908]
[1633107349199,5.80177632,3262.7,3262.6,8.75725634]
[1633107349327,0.5308984,3262.7,3262.6,6.41120908]
[1633107349727,2.48874304,3262.7,3262.6,6.41120908]
[1633107349926,3.01959024,3262.9,3262.6,6.41120908]
[1633107350128,2.48875596,3262.8,3262.6,9.21263392]
[1633107350329,0.53085415,3262.9,3262.7,5.89159]
[1633107350528,0.53085415,3262.9,3262.7,4.59759]
[1633107350729,1.97984841,3263.0,3262.7,4.59759]
[1633107351528,1.449,3263.0,3262.8,4.359]
[1633107351734,1.449,3263.0,3262.9,2.81816478]
[1633107351928,1.449,3263.0,3262.9,4.83517971]
[1633107352329,1.449,3263.0,3262.9,0.263913]
[1633107352528,1.449,3263.0,3262.9,1.557913]
[1633107353329,1.449,3263.0,3262.9,6.154733]
[1633107359935,1.399,3263.0,3262.9,6.154733]
[1633107360736,1.399,3263.0,3262.9,6.148389]
[1633107361738,1.399,3263.0,3262.9,4.78082]
[1633107361938,3.73325749,3263.0,3262.9,0.184]
[1633107362141,6.51308623,3263.0,3262.9,0.184]
[1633107362335,3.202497,3263.0,3262.6,4.93320908]
[1633107362536,0.53080672,3262.8,3262.6,4.93320908]
[1633107362738,5.31390672,3262.8,3262.6,4.93320908]
[1633107362936,0.53084653,3262.7,3262.6,4.93320908]
[1633107364200,0.71482059,3262.8,3262.6,4.93320908]
[1633107364339,14.05,3262.7,3262.6,4.93320908]
[1633107364540,29.76483682,3262.7,3262.6,4.93320908]
[1633107364745,18.49487111,3262.7,3262.6,4.93320908]
[1633107364941,0.184,3262.7,3262.6,4.93320908]
[1633107365143,3.934,3262.7,3262.6,4.93320908]
[1633107365339,18.934,3262.7,3262.6,4.93320908]
[1633107365538,5.98387971,3262.7,3262.6,4.93320908]
[1633107365739,2.67303083,3262.7,3262.6,4.93320908]
[1633107365938,17.67303083,3262.7,3262.6,4.93320908]
[1633107366139,5.98378762,3262.7,3262.6,4.93320908]
[1633107366340,23.92378762,3262.7,3262.6,4.93320908]
[1633107366940,5.37996803,3262.6,3262.0,49.995252]
[1633107367207,23.63149539,3262.1,3261.5,0.003]
[1633107367344,0.02512612,3261.6,3261.5,0.003]
[1633107367539,0.25394112,3261.6,3261.0,0.006]
[1633107367738,0.25394112,3261.6,3261.4,0.003]
[1633107367940,0.93751585,3261.5,3260.9,0.006]
[1633107368141,0.184,3261.4,3260.9,0.006]
[1633107369341,0.184,3261.8,3261.1,0.079422]
[1633107369741,2.48950842,3261.7,3261.2,0.003]
[1633107369943,0.91291618,3261.6,3261.2,0.003]
[1633107370738,1.0,3261.4,3261.2,0.003]
[1633107371543,0.32213453,3261.9,3261.7,0.91291618]
[1633107371747,0.53042374,3262.4,3262.0,1.39567597]
[1633107371946,3.04160947,3262.6,3262.5,15.55271569]
[1633107372143,3.04160947,3262.6,3262.5,7.08646713]
[1633107372346,1.44991239,3262.6,3262.5,10.30227406]
[1633107372547,0.003,3263.0,3262.9,15.95476441]
[1633107372744,0.003,3263.0,3262.9,16.13876441]
[1633107372943,0.006,3263.4,3262.9,61.18343057]
[1633107373207,0.009,3264.0,3263.2,4.594]
[1633107373343,0.009,3264.0,3263.5,0.079913]
[1633107373542,0.009,3264.0,3263.6,0.91550901]
[1633107373742,0.009,3264.0,3263.6,49.80171658]
[1633107373943,0.009,3264.0,3263.6,51.09571658]
[1633107374542,1.406,3263.7,3263.6,48.30343341]
[1633107375342,1.406,3263.7,3263.6,48.03284067]
[1633107375542,1.406,3263.7,3263.6,48.21684067]
[1633107378948,0.009,3264.0,3263.7,14.05]
[1633107379214,0.009,3264.0,3263.7,0.184]
[1633107379351,0.009,3264.0,3263.7,1.478]
[1633107382757,0.00150394,3263.9,3263.7,1.478]
[1633107382963,0.009,3264.0,3263.9,14.05]
[1633107383157,0.009,3264.0,3263.9,4.778]
[1633107383559,0.006,3264.2,3264.0,9.8]
[1633107383759,0.006,3264.2,3264.0,0.262975]
[1633107384157,0.006,3264.2,3264.0,1.556975]
[1633107384761,0.006,3264.2,3264.0,4.857285]
[1633107387560,0.00287679,3264.3,3264.2,4.59508]
[1633107387758,0.00287679,3264.3,3264.2,5.92191659]
[1633107387959,0.00287679,3264.3,3264.2,4.77908]
[1633107388360,0.00287679,3264.3,3264.2,6.07308]
[1633107389359,0.00287679,3264.3,3264.2,7.0871163]
[1633107391221,0.00287679,3264.3,3264.2,8.79031421]
[1633107392160,0.00287679,3264.3,3264.2,7.0871163]
[1633107393763,0.00287679,3264.3,3264.2,7.2871163]
[1633107396764,0.00287679,3264.3,3264.2,6.27308]
[1633107396966,0.00287679,3264.3,3264.2,6.22308]
[1633107397367,0.00287679,3264.3,3264.2,4.92908]
[1633107397966,0.00287679,3264.3,3264.2,8.15360781]
[1633107400165,0.00287679,3264.3,3264.2,6.85960781]
[1633107402770,0.006,3264.4,3264.3,6.12522]
[1633107402970,0.006,3264.4,3264.3,6.30922]
[1633107403570,0.006,3264.4,3264.3,46.60480698]
[1633107404569,0.006,3264.4,3264.3,49.36115188]
[1633107404972,0.006,3264.4,3264.3,47.37115188]
[1633107405371,0.006,3264.8,3264.3,47.37115188]
[1633107406375,0.006,3264.8,3264.4,6.12508]
[1633107406570,0.006,3264.8,3264.4,6.30908]
[1633107407971,0.006,3264.8,3264.4,4.45142]
[1633107409776,0.006,3264.8,3264.4,4.39912805]
[1633107416380,0.006,3264.8,3264.4,5.22688213]
[1633107416580,0.006,3264.8,3264.5,9.95]
[1633107416783,0.006,3264.8,3264.5,6.30861]
[1633107417981,0.006,3264.8,3264.6,4.59373]
[1633107418245,0.006,3264.8,3264.6,4.77773]
[1633107419783,0.006,3264.9,3264.6,4.44511328]
[1633107419987,0.006,3264.9,3264.6,8.35583536]
[1633107420184,0.256,3265.2,3264.7,14.05]
[1633107420383,0.006,3265.2,3264.9,0.92858014]
[1633107420584,0.006,3265.2,3265.0,8.61848556]
[1633107420783,0.006,3265.2,3265.0,48.89854796]
[1633107420985,0.006,3265.2,3265.0,44.70975692]
[1633107421256,0.044358,3265.2,3265.0,40.47958698]
[1633107421484,0.044358,3265.2,3265.0,40.29558698]
[1633107421685,0.006,3265.2,3265.1,4.59268]
[1633107421883,0.177,3265.5,3265.1,4.59268]
[1633107422486,0.177,3265.5,3265.2,1.10986413]
[1633107422683,0.177,3265.5,3265.3,4.59317]
[1633107423484,0.177,3265.5,3265.4,0.91920423]
[1633107424485,0.009,3265.5,3265.3,7.65529]
[1633107429790,0.009,3265.5,3265.3,11.65529]
[1633107431387,0.009,3265.5,3265.3,4.184]
[1633107431587,0.009,3265.5,3265.4,2.88156159]
[1633107431787,0.009,3265.5,3265.4,3.06556159]
[1633107431988,0.009,3265.5,3265.4,4.43629359]
[1633107432187,0.006,3265.7,3265.4,4.43629359]
[1633107432393,0.006,3265.7,3265.5,7.27525046]
[1633107432588,0.006,3265.7,3265.5,9.72639743]
[1633107432788,0.006,3265.7,3265.5,9.4478403]
[1633107433250,0.006,3265.7,3265.5,10.7418403]
[1633107433588,0.006,3265.7,3265.5,10.80130813]
[1633107433991,0.006,3265.7,3265.5,8.06058984]
[1633107434787,0.006,3265.7,3265.5,10.71507379]
[1633107434991,0.006,3265.7,3265.5,8.06058984]
[1633107435588,0.006,3265.7,3265.5,10.72664755]
[1633107435789,0.006,3265.8,3265.5,12.72664755]
[1633107435992,0.006,3265.8,3265.7,18.99258845]
[1633107436258,0.006,3265.9,3265.7,5.12658845]
[1633107436390,0.006,3265.9,3265.8,4.594]
[1633107436590,0.006,3265.9,3265.8,4.778]
[1633107436793,0.006,3265.9,3265.8,10.93416238]
[1633107437092,0.88114204,3268.1,3266.6,0.73101398]
[1633107437291,0.88114204,3268.1,3266.9,3.06099]
[1633107437292,15.06877913,3267.4,3266.9,3.06099]
[1633107437495,0.006,3267.3,3267.0,40.47958698]
[1633107438090,0.006,3267.3,3267.1,1.73970357]
[1633107438290,0.006,3267.3,3267.1,1.03707661]
[1633107439292,0.006,3267.3,3267.1,2.0429574]
[1633107440094,0.006,3267.3,3267.1,1.18988079]
[1633107440892,0.006,3267.3,3267.1,3.89126381]
[1633107441092,0.006,3267.3,3267.1,2.20925082]
[1633107441293,0.006,3267.3,3267.1,4.85370025]
[1633107441493,0.006,3267.6,3267.1,6.18220025]
[1633107441692,0.00187916,3267.2,3267.1,6.18220025]
[1633107441892,0.00187916,3267.2,3267.1,3.53775082]
[1633107443295,0.00187916,3267.2,3267.1,2.20925082]
[1633107444895,0.00187916,3267.2,3267.0,37.41868556]
[1633107444896,0.02730984,3267.2,3267.0,37.41868556]
[1633107445265,0.02730984,3267.2,3267.1,0.184]
[1633107446095,0.02730984,3267.2,3267.0,37.41868556]
[1633107446698,0.00187916,3267.2,3267.0,37.41868556]
[1633107446900,0.85698416,3267.2,3267.0,37.41868556]
[1633107447499,0.00187916,3267.2,3267.0,37.41868556]
[1633107447703,0.00187916,3267.2,3267.0,37.60268556]
[1633107448702,0.00187916,3267.2,3267.0,42.19404556]
[1633107464973,0.00187916,3267.2,3267.0,42.09404556]
[1633107467576,0.00187916,3267.2,3267.0,37.31868556]
[1633107468379,0.00187916,3267.2,3266.1,0.003]
[1633107468380,4.59311,3266.7,3266.1,0.003]
[1633107468581,15.0,3266.2,3266.1,0.003]
[1633107468777,0.038358,3266.4,3266.0,0.006]
[1633107469176,15.0,3266.1,3265.5,0.009]
[1633107469376,0.038358,3266.4,3265.4,0.009]
[1633107469775,0.038358,3266.4,3265.8,0.95031331]
[1633107470176,0.038358,3266.4,3265.9,0.006]
[1633107471277,11.1664,3266.9,3266.0,4.59263]
[1633107471481,7.54748082,3267.0,3266.1,0.89979615]
[1633107471778,7.54748082,3267.0,3266.4,0.079913]
[1633107472177,7.54748082,3267.0,3266.5,0.003]
[1633107472377,7.54748082,3267.0,3266.7,4.59148]
[1633107474778,7.54748082,3267.0,3266.8,0.184]
[1633107475780,7.54748082,3267.0,3266.8,4.7754]
[1633107476185,7.49748082,3267.0,3266.8,4.7754]
[1633107486589,7.49748082,3267.0,3266.8,4.5914]
[1633107494989,7.49748082,3267.0,3266.9,0.184]
[1633107495391,0.009,3267.5,3267.4,15.82627451]
[1633107495595,5.78936931,3268.1,3267.8,0.6789]
[1633107495793,0.006,3268.7,3268.6,8.92607105]
[1633107495991,0.006,3268.7,3268.6,10.04027105]
[1633107496192,0.006,3268.7,3268.6,10.77244071]
[1633107496392,0.006,3268.8,3268.6,15.01131479]
[1633107496594,0.009,3269.5,3268.6,15.01131479]
[1633107496595,2.29541617,3270.1,3269.8,1.54321373]
[1633107496796,2.82344257,3270.8,3270.6,1.374755]
[1633107496996,0.006,3270.8,3270.6,6.61940204]
[1633107497194,0.006,3270.8,3270.7,5.44014908]
[1633107497393,0.006,3270.8,3270.7,7.13816161]
[1633107497592,0.006,3270.8,3270.7,8.43216161]
[1633107497793,0.006,3270.8,3270.7,8.61616161]
[1633107497991,0.009,3271.0,3270.8,14.05]
[1633107498192,0.009,3271.0,3270.8,18.828]
[1633107498399,0.006,3272.2,3270.8,18.828]
[1633107498400,2.00793175,3272.9,3272.7,15.83301153]
[1633107498595,0.006,3273.4,3273.3,1.54813797]
[1633107498793,0.006,3273.4,3273.3,7.25552618]
[1633107498994,0.072,3273.8,3273.3,10.90782797]
[1633107499193,0.072,3273.8,3273.3,1.73213797]
[1633107499194,0.056,3273.8,3273.3,1.73213797]
[1633107499596,1.17010609,3273.2,3273.0,2.01812084]
[1633107499794,1.17010609,3273.2,3272.5,0.003]
[1633107499795,1.10075482,3273.1,3272.5,0.003]
[1633107499995,0.99872144,3273.0,3272.7,2.0]
[1633107500198,0.184,3272.9,3272.7,2.0]
[1633107500395,2.46,3272.9,3272.7,2.0]
[1633107501195,2.46,3272.9,3271.8,0.006]
[1633107501196,2.46,3272.9,3271.8,0.98919815]
[1633107501394,0.184,3272.8,3271.8,0.006]
[1633107501597,15.0,3272.2,3271.9,0.006]
[1633107501796,0.184,3272.1,3271.5,0.003]
[1633107501994,0.184,3272.1,3271.1,0.085717]
[1633107502198,1.06905277,3271.9,3271.1,0.076717]
[1633107502394,1.06905277,3271.9,3271.2,0.009]
[1633107503194,0.184,3272.4,3271.2,0.009]
[1633107503397,0.184,3272.9,3271.2,0.009]
[1633107503695,3.68311194,3272.8,3271.2,3.11821516]
[1633107504095,3.68311194,3272.8,3271.3,0.009]
[1633107504296,3.68311194,3272.8,3271.4,0.72268521]
[1633107504297,1.17189938,3271.6,3271.4,0.72268521]
[1633107504498,2.8320333,3272.6,3271.4,0.72268521]
[1633107504699,2.8320333,3272.6,3271.5,0.009]
[1633107504700,1.60869589,3272.6,3271.5,0.009]
[1633107504895,14.05,3272.5,3271.4,0.68168521]
[1633107505098,0.003,3272.0,3271.4,0.68168521]
[1633107505495,1.09321316,3272.0,3271.4,0.68168521]
[1633107506096,1.09321316,3272.0,3271.9,0.78963288]
[1633107506097,0.003,3272.0,3271.9,0.78963288]
[1633107506696,0.003,3272.0,3271.9,0.97363288]
[1633107507299,0.003,3272.0,3271.9,1.00700389]
[1633107507895,0.003,3272.0,3271.9,18.94700389]
[1633107508095,0.003,3272.0,3271.9,0.97363288]
[1633107510096,0.003,3272.0,3271.9,2.26763288]
[1633107510296,0.003,3272.0,3271.9,0.97363288]
[1633107512499,0.003,3272.0,3271.9,2.26763288]
[1633107512699,0.003,3272.5,3272.0,12.05]
[1633107512896,0.003,3272.5,3272.0,0.184]
[1633107513497,0.003,3272.5,3271.7,3.05633]
[1633107513696,0.91441737,3271.8,3271.5,0.003]
[1633107513895,0.91441737,3271.8,3271.4,0.003]
[1633107514298,0.6997,3272.0,3271.0,0.006]
[1633107514498,0.75458095,3272.1,3271.4,0.85265389]
[1633107514698,0.187,3272.5,3271.4,0.85265389]
[1633107514895,0.187,3272.5,3271.5,0.003]
[1633107515102,1.74836558,3272.1,3271.5,0.003]
[1633107515299,0.98856978,3272.0,3271.5,0.003]
[1633107515498,1.17256978,3272.0,3271.2,0.003]
[1633107515898,15.0,3271.8,3270.5,7.44541877]
[1633107516097,0.74194628,3271.3,3270.6,0.91384826]
[1633107516298,15.0,3271.8,3270.6,0.91384826]
[1633107516501,0.184,3272.0,3270.7,0.006]
[1633107516698,0.0236,3271.9,3270.7,0.006]
[1633107516897,0.0236,3271.9,3270.8,3.05717]
[1633107517098,0.0236,3271.9,3271.2,0.079913]
[1633107517297,0.0236,3271.9,3271.6,0.93230953]
[1633107517703,0.85237539,3271.8,3271.3,0.003]
[1633107517998,1.00777731,3272.0,3271.3,0.003]
[1633107518398,1.00777731,3272.0,3271.9,0.003]
[1633107518598,1.97683093,3272.0,3271.9,0.003]
[1633107518798,1.97683093,3272.0,3271.6,0.003]
[1633107518999,0.184,3272.5,3271.6,0.003]
[1633107520000,1.07677374,3271.7,3271.6,0.003]
[1633107520402,13.72677374,3271.7,3271.6,0.003]
[1633107520603,28.91077374,3271.7,3271.5,0.003]
[1633107520804,13.91077374,3271.7,3270.9,0.006]
[1633107521003,13.91077374,3271.7,3270.5,0.009]
[1633107521204,0.87362538,3270.9,3270.6,0.96681426]
[1633107521406,0.87362538,3270.9,3270.6,0.006]
[1633107521607,0.87362538,3270.9,3270.7,0.006]
[1633107521806,0.89275832,3271.2,3270.5,0.009]
[1633107522407,0.89275832,3271.2,3270.7,0.92163033]
[1633107522809,1.13819435,3271.1,3270.8,0.006]
[1633107523405,1.13819435,3271.1,3270.5,0.009]
[1633107523606,0.00131803,3271.0,3270.5,0.009]
[1633107524010,0.00131803,3271.0,3270.6,0.82570472]
[1633107524406,0.00131803,3271.0,3270.7,0.006]
[1633107525412,1.00572403,3271.0,3270.7,0.006]
[1633107525807,0.00131803,3271.0,3270.5,0.009]
[1633107526407,0.00131803,3271.0,3270.6,0.95715619]
[1633107526810,0.00131803,3271.0,3270.7,0.006]
[1633107527007,13.58758,3270.8,3270.7,0.006]
[1633107527208,4.58758,3270.8,3270.5,0.009]
[1633107527408,6.11808803,3271.0,3270.5,0.009]
[1633107527409,0.00131803,3271.0,3270.5,0.009]
[1633107527808,0.88800461,3270.8,3270.5,0.9962437]
[1633107528015,0.88800461,3270.8,3270.5,0.009]
[1633107528208,1.07200461,3270.8,3270.6,0.006]
[1633107528413,123.93985176,3270.7,3270.0,0.003]
[1633107528609,123.93985176,3270.7,3270.0,0.006]
[1633107528610,0.184,3270.6,3270.0,0.006]
[1633107528808,0.39967419,3270.6,3270.0,0.006]
[1633107529009,1.26112883,3270.5,3270.0,0.006]
[1633107529272,4.87884977,3270.4,3270.0,0.006]
[1633107529409,4.58838,3270.2,3270.0,0.006]
[1633107529609,14.184,3270.1,3270.0,0.006]
[1633107529810,0.184,3270.1,3270.0,0.006]
[1633107530110,0.012,3269.9,3269.1,0.003]
[1633107530310,0.84605602,3269.4,3269.1,0.003]
[1633107530512,0.86563829,3269.3,3268.9,0.006]
[1633107531112,0.86563829,3269.3,3268.7,0.006]
[1633107531310,15.0,3269.0,3268.7,0.006]
[1633107531512,19.5901,3269.0,3268.7,0.006]
[1633107531711,14.92432273,3268.8,3268.7,0.006]
[1633107531909,1.821,3268.8,3268.7,0.006]
[1633107532713,2.76043669,3268.8,3268.7,0.006]
[1633107532911,1.12343669,3268.8,3268.7,0.006]
[1633107533314,0.81040406,3269.1,3268.7,0.006]
[1633107533315,0.184,3269.5,3268.7,0.006]
[1633107533513,0.184,3269.5,3268.7,2.90123355]
[1633107533714,0.184,3269.5,3268.7,0.006]
[1633107533913,0.184,3269.5,3268.8,0.006]
[1633107534114,0.00102185,3269.4,3268.8,0.006]
[1633107534316,3.0600874,3269.2,3268.8,0.006]
[1633107534514,0.395123,3269.1,3268.7,0.006]
[1633107534713,0.38945614,3269.1,3268.7,0.006]
[1633107535278,0.87346658,3268.9,3268.7,0.006]
[1633107535413,1.07809106,3268.8,3268.7,0.006]
[1633107536413,3.0600874,3269.2,3268.7,0.006]
[1633107536414,0.184,3269.1,3268.7,0.006]
[1633107536813,0.18502185,3269.5,3269.1,0.95672694]
[1633107537214,0.18502185,3269.5,3269.2,0.003]
[1633107537614,1.04536285,3269.4,3269.2,0.003]
[1633107538291,0.184,3270.1,3269.5,0.184]
[1633107538424,0.003,3270.5,3269.8,19.16345194]
[1633107538621,2.48893069,3270.7,3269.8,19.16345194]
[1633107538622,2.48893069,3270.7,3270.5,0.37659235]
[1633107538816,0.003,3271.5,3270.8,1.96248186]
[1633107539020,1.21127808,3272.4,3270.8,1.96248186]
[1633107539021,1.38729872,3272.5,3271.8,0.26059235]
[1633107539218,1.38729872,3272.5,3272.3,0.181]
[1633107539219,0.003,3272.5,3272.3,0.181]
[1633107539417,0.003,3273.0,3272.8,0.25759235]
[1633107539720,0.52195897,3273.5,3273.3,0.43559235]
[1633107539721,0.003,3273.5,3273.3,0.43559235]
[1633107539915,0.003,3273.5,3273.4,0.05224363]
[1633107540117,0.003,3273.5,3273.4,1.36093795]
[1633107540318,0.003,3273.5,3273.4,1.06554363]
[1633107540319,9.833,3273.5,3273.4,1.06554363]
[1633107540519,3.54719,3273.5,3273.4,7.23446086]
[1633107540722,9.62,3273.6,3273.4,11.82846086]
[1633107540917,9.62,3273.6,3273.5,4.594]
[1633107541116,9.62,3273.6,3273.5,6.5699]
[1633107541117,7.37,3273.6,3273.5,6.5699]
[1633107541317,9.83,3273.6,3273.5,6.5699]
[1633107541518,9.83,3273.6,3273.5,12.80594165]
[1633107541720,12.306,3273.9,3273.6,12.73420006]
[1633107541917,12.306,3273.9,3273.8,4.594]
[1633107542116,12.306,3273.9,3273.8,4.857913]
[1633107542318,0.006,3273.9,3273.8,4.857913]
[1633107542517,0.006,3273.9,3273.8,4.851913]
[1633107542717,0.006,3273.9,3273.8,6.145913]
[1633107542919,0.006,3273.9,3273.8,6.139913]
[1633107543322,9.836,3273.9,3273.8,10.714183]